bitfinex-derivatives/quotes_SOLF0:USTF0_20260304
["timestamp","ask_amount","ask_price","bid_price","bid_amount"]
[1772646534808,10.0077223,91.73,91.64,33.37264864]
[1772646535008,7.35235839,91.73,91.668,9.815]
[1772646535306,10.0077223,91.744,91.668,14.22959326]
[1772646535512,9.81,91.714,91.668,14.22959326]
[1772646536313,9.81,91.714,91.67,9.815]
[1772646538214,9.811,91.706,91.668,14.22959326]
[1772646539108,7.35235839,91.73,91.668,14.22959326]
[1772646539109,10.0077223,91.743,91.669,33.5893147]
[1772646539309,7.35235839,91.75,91.669,33.5893147]
[1772646540007,7.35235839,91.73,91.668,14.22959326]
[1772646540817,7.35235839,91.73,91.672,9.815]
[1772646541006,7.35235839,91.73,91.673,33.56811121]
[1772646542318,9.809,91.729,91.679,9.814]
[1772646542518,7.35235839,91.73,91.679,9.814]
[1772646543318,17.16135839,91.73,91.679,9.814]
[1772646544020,7.35235839,91.71,91.668,14.22959326]
[1772646545315,7.35235839,91.73,91.668,14.22959326]
[1772646545521,7.35235839,91.75,91.67,33.50843373]
[1772646545913,7.35235839,91.73,91.668,14.22959326]
[1772646546519,9.81,91.713,91.668,14.22959326]
[1772646547118,7.35235839,91.72,91.669,9.815]
[1772646548122,9.81,91.712,91.669,9.815]
[1772646548324,9.81,91.712,91.668,14.22959326]
[1772646549530,9.811,91.706,91.668,14.22959326]
[1772646549729,7.35235839,91.7,91.635,33.41307342]
[1772646550529,9.811,91.708,91.635,33.41307342]
[1772646551131,7.34268128,91.71,91.635,33.41307342]
[1772646551132,9.812,91.701,91.635,33.41307342]
[1772646551429,7.34268128,91.71,91.635,33.41307342]
[1772646552030,7.34268128,91.71,91.655,9.816]
[1772646552231,7.34268128,91.71,91.635,33.41307342]
[1772646552526,7.34268128,91.69,91.647,9.817]
[1772646553532,9.813,91.689,91.639,9.818]
[1772646554131,9.814,91.682,91.639,9.818]
[1772646554433,9.814,91.682,91.639,13.05428008]
[1772646554634,7.34268128,91.71,91.647,33.09480695]
[1772646554839,9.811,91.707,91.647,33.09480695]
[1772646555030,7.34268128,91.71,91.647,33.09480695]
[1772646555734,7.34268128,91.71,91.656,33.09909388]
[1772646556236,7.34268128,91.73,91.656,33.09909388]
[1772646556534,3.42498654,91.7,91.656,33.09909388]
[1772646556736,3.42498654,91.7,91.639,3.23628008]
[1772646556737,3.42498654,91.72,91.671,36.33731531]
[1772646556940,3.42498654,91.71,91.671,36.33731531]
[1772646557136,3.42498654,91.72,91.671,36.33731531]
[1772646557736,9.81,91.719,91.675,9.814]
[1772646557937,3.42498654,91.71,91.671,36.33731531]
[1772646558535,3.42498654,91.72,91.671,36.33731531]
[1772646559430,3.42498654,91.71,91.681,9.814]
[1772646560129,3.42498654,91.71,91.673,42.67760724]
[1772646560332,3.42498654,91.7,91.671,3.32725298]
[1772646560537,154.40679191,91.775,91.658,32.86360724]
[1772646560538,7.34250155,91.71,91.658,32.86360724]
[1772646561138,9.811,91.707,91.658,32.86360724]
[1772646561740,9.812,91.699,91.658,32.86360724]
[1772646562240,7.34250155,91.71,91.659,9.816]
[1772646562838,7.34250155,91.71,91.65,9.817]
[1772646563042,7.34250155,91.69,91.599,32.82531295]
[1772646563243,7.34250155,91.67,91.599,32.82531295]
[1772646564141,9.816,91.66,91.611,32.82808427]
[1772646564732,7.34250155,91.65,91.561,32.94360558]
[1772646565935,9.819,91.633,91.576,32.94882302]
[1772646566136,7.34250155,91.65,91.576,32.94882302]
[1772646567043,9.817,91.648,91.597,32.98367666]
[1772646567244,7.98146706,91.669,91.597,32.98367666]
[1772646567445,7.34250155,91.67,91.597,32.98367666]
[1772646567648,7.34250155,91.69,91.597,32.98367666]
[1772646568144,9.813,91.686,91.628,32.98678837]
[1772646568339,7.34250155,91.71,91.628,32.98678837]
[1772646568843,9.812,91.698,91.639,42.797388]
[1772646569049,7.34250155,91.69,91.614,32.979388]
[1772646569547,7.34250155,91.69,91.616,32.979388]
[1772646570849,7.34250155,91.69,91.618,9.82]
[1772646571051,7.34250155,91.69,91.619,32.73151901]
[1772646571342,9.814,91.678,91.619,32.73151901]
[1772646571550,7.34250155,91.67,91.619,32.73151901]
[1772646571747,7.34250155,91.67,91.572,32.73316487]
[1772646572350,7.34250155,91.69,91.613,32.73316487]
[1772646573044,9.814,91.682,91.626,32.89171697]
[1772646573942,7.34250155,91.69,91.629,32.89428591]
[1772646574547,9.813,91.688,91.632,9.819]
[1772646574749,7.34250155,91.69,91.629,32.89428591]
[1772646574949,7.34250155,91.69,91.601,32.89233537]
[1772646576345,9.814,91.68,91.622,9.82]
[1772646576553,9.814,91.68,91.622,42.7148305]
[1772646577149,9.814,91.68,91.625,32.90149753]
[1772646578457,9.814,91.68,91.631,9.819]
[1772646579056,9.814,91.68,91.631,42.75034374]
[1772646580854,9.815,91.665,91.615,32.94134271]
[1772646581062,7.34250155,91.67,91.615,32.94134271]
[1772646581757,9.815,91.673,91.618,32.944421]
[1772646581958,7.34250155,91.68,91.618,32.944421]
[1772646582159,7.34250155,91.68,91.571,19.651]
[1772646582160,7.98833989,91.688,91.64,32.944421]
[1772646582360,7.34250155,91.7,91.611,32.944421]
[1772646583351,9.814,91.679,91.626,9.82]
[1772646583555,9.814,91.679,91.627,32.92269489]
[1772646584258,7.34250155,91.68,91.591,32.92498306]
[1772646584959,7.34250155,91.68,91.619,32.95718387]
[1772646585159,7.34250155,91.7,91.619,32.95718387]
[1772646585364,7.34250155,91.7,91.57,7.34250155]
[1772646585365,18.1042264,91.713,91.648,32.95718387]
[1772646585558,7.98833989,91.712,91.648,32.95718387]
[1772646585758,10.11588651,91.719,91.648,32.95718387]
[1772646585960,10.11588651,91.717,91.651,32.95949593]
[1772646586154,10.11588651,91.719,91.651,32.95949593]
[1772646586360,9.811,91.709,91.659,42.77549593]
[1772646586561,9.811,91.709,91.659,32.95949593]
[1772646586760,18.1042264,91.721,91.659,32.95949593]
[1772646587059,10.11588651,91.721,91.659,32.95949593]
[1772646587259,7.34250155,91.73,91.659,32.95949593]
[1772646587260,10.11588651,91.719,91.659,32.95949593]
[1772646588266,10.11588651,91.721,91.659,32.95949593]
[1772646588468,9.812,91.701,91.659,32.95949593]
[1772646591170,10.11588651,91.72,91.659,32.95949593]
[1772646591171,9.813,91.693,91.659,32.95949593]
[1772646591469,9.813,91.693,91.587,20.32524903]
[1772646591470,10.11588651,91.701,91.645,32.94230376]
[1772646592072,9.814,91.677,91.638,32.94436723]
[1772646592271,7.34250155,91.69,91.638,32.94436723]
[1772646592472,9.815,91.669,91.622,32.91661852]
[1772646592674,7.34250155,91.69,91.622,32.91661852]
[1772646593365,7.34250155,91.67,91.622,32.91661852]
[1772646593673,7.34250155,91.68,91.622,32.91661852]
[1772646593867,7.98565909,91.692,91.622,32.91661852]
[1772646594073,7.98565909,91.701,91.622,32.91661852]
[1772646594272,9.811,91.703,91.647,32.91797889]
[1772646595576,9.811,91.703,91.653,32.67368819]
[1772646595868,10.11588651,91.748,91.653,32.67368819]
[1772646596072,7.9821194,91.747,91.653,32.67368819]
[1772646596275,7.9821194,91.746,91.653,32.67368819]
[1772646596472,7.9821194,91.745,91.653,32.67368819]
[1772646596775,9.811,91.705,91.653,32.67368819]
[1772646599975,19.612,91.754,91.653,32.67368819]
[1772646599976,9.812,91.698,91.653,32.67368819]
[1772646601078,9.813,91.691,91.653,32.67368819]
[1772646601279,7.34250155,91.71,91.611,32.46887458]
[1772646601778,7.34250155,91.71,91.615,32.46972838]
[1772646602382,9.814,91.675,91.632,32.46972838]
[1772646603282,9.813,91.684,91.632,32.46972838]
[1772646603473,7.9821194,91.719,91.632,32.46972838]
[1772646603672,7.9821194,91.744,91.632,32.46972838]
[1772646603883,9.81,91.715,91.666,32.479766]
[1772646605084,7.9821194,91.744,91.671,32.53230464]
[1772646605279,7.34250155,91.75,91.671,32.53230464]
[1772646605680,9.81,91.714,91.671,32.53230464]
[1772646605885,9.81,91.714,91.673,32.53323224]
[1772646606287,9.809,91.723,91.675,32.53323224]
[1772646606888,9.808,91.732,91.678,32.93238445]
[1772646607582,9.807,91.74,91.687,32.93400916]
[1772646607888,7.9821194,91.74,91.687,32.93400916]
[1772646608086,7.34250155,91.75,91.687,32.93400916]
[1772646608788,7.9821194,91.762,91.641,32.91727021]
[1772646608991,19.611,91.758,91.667,32.91727021]
[1772646609188,7.9821194,91.757,91.667,32.91727021]
[1772646609493,9.809,91.721,91.677,32.91882629]
[1772646610593,9.81,91.714,91.677,32.91882629]
[1772646611394,9.809,91.722,91.677,32.91882629]
[1772646611597,7.33735261,91.75,91.677,32.91882629]
[1772646612790,7.9821194,91.757,91.677,32.91882629]
[1772646614492,9.809,91.729,91.679,32.74727153]
[1772646615202,9.809,91.723,91.679,32.74727153]
[1772646615994,9.81,91.717,91.679,32.74727153]
[1772646616196,7.33735261,91.75,91.679,32.74727153]
[1772646618894,9.809,91.729,91.679,32.74727153]
[1772646619093,7.9821194,91.757,91.688,9.813]
[1772646619300,7.9821194,91.769,91.689,28.0307688]
[1772646619499,7.9821194,91.785,91.691,28.0307688]
[1772646619702,7.33735261,91.79,91.691,28.0307688]
[1772646619904,9.806,91.753,91.694,28.03237371]
[1772646620796,7.33735261,91.79,91.69,7.33735261]
[1772646620797,7.33735261,91.79,91.711,28.0352475]
[1772646621101,7.9821194,91.806,91.711,28.0352475]
[1772646621405,7.9821194,91.823,91.731,28.0352475]
[1772646621598,7.33735261,91.83,91.731,28.0352475]
[1772646621804,9.801,91.796,91.731,28.0352475]
[1772646622208,7.33735261,91.81,91.731,28.0352475]
[1772646622606,7.9821194,91.83,91.741,28.05607339]
[1772646622899,7.33735261,91.82,91.745,28.05607339]
[1772646623204,7.33735261,91.8,91.7,7.33735261]
[1772646625005,9.804,91.77,91.712,9.81]
[1772646625305,7.9821194,91.817,91.713,19.55072107]
[1772646625905,7.9821194,91.817,91.727,19.55484259]
[1772646626109,7.33735261,91.82,91.727,19.55484259]
[1772646626603,7.33735261,91.82,91.731,19.72311677]
[1772646627407,7.33735261,91.82,91.733,19.72311677]
[1772646627699,7.33735261,91.84,91.733,19.72311677]
[1772646627899,9.799,91.814,91.751,19.72535615]
[1772646628696,7.33735261,91.84,91.751,19.72535615]
[1772646628902,7.33735261,91.82,91.751,19.72535615]
[1772646629502,9.801,91.796,91.751,19.72535615]
[1772646630409,9.801,91.805,91.751,19.72535615]
[1772646632606,9.801,91.797,91.751,19.72535615]
[1772646633010,186.25198369,91.845,91.762,19.92669201]
[1772646633203,9.8,91.807,91.762,19.92669201]
[1772646633404,7.33735261,91.83,91.741,19.92669201]
[1772646634111,7.33735261,91.81,91.741,19.92669201]
[1772646634515,186.25207153,91.845,91.741,19.92669201]
[1772646634706,184.35570677,91.845,91.741,19.92669201]
[1772646634905,184.35570677,91.845,91.761,19.91638296]
[1772646635209,184.35570677,91.845,91.763,19.91638296]
[1772646635908,7.33735261,91.83,91.741,19.91873152]
[1772646636415,184.35570677,91.845,91.743,19.91873152]
[1772646636611,7.33735261,91.84,91.743,19.91873152]
[1772646636819,184.35570677,91.845,91.712,19.621]
[1772646636820,184.35570677,91.845,91.76,19.98216428]
[1772646637414,184.35570677,91.845,91.774,19.98216428]
[1772646638013,19.96484719,91.837,91.787,19.98549968]
[1772646638218,10.16784719,91.837,91.787,19.98549968]
[1772646639219,9.798,91.831,91.787,19.98549968]
[1772646640016,10.16784719,91.837,91.787,19.98549968]
[1772646640314,10.16784719,91.837,91.694,177.0]
[1772646640315,10.16784719,91.837,91.707,19.622]
[1772646640616,10.16784719,91.837,91.741,20.05845239]
[1772646640811,9.8,91.809,91.746,9.807]
[1772646641113,9.8,91.809,91.747,20.08090686]
[1772646641315,10.16784719,91.837,91.747,20.08090686]
[1772646642016,10.16784719,91.837,91.77,20.08332157]
[1772646642815,9.797,91.836,91.783,20.35165127]
[1772646644212,9.798,91.828,91.783,20.35165127]
[1772646644817,9.8,91.805,91.749,9.806]
[1772646645019,7.69541589,91.836,91.74,7.33735261]
[1772646645418,9.797,91.834,91.766,9.804]
[1772646645914,7.69541589,91.836,91.74,7.33735261]
[1772646646318,7.69541589,91.836,91.76,7.33735261]
[1772646646920,7.69541589,91.836,91.761,13.73080197]
[1772646647714,7.86817046,91.835,91.78,13.73080197]
[1772646648814,10.16784719,91.837,91.766,13.79845412]
[1772646648815,8.00501314,91.82,91.766,13.79845412]
[1772646649322,10.16784719,91.837,91.766,13.79845412]
[1772646649925,9.798,91.826,91.78,9.803]
[1772646650720,9.799,91.822,91.771,9.804]
[1772646651522,8.12307179,91.821,91.749,13.79845412]
[1772646652220,9.799,91.817,91.761,23.60345412]
[1772646652426,8.17167984,91.816,91.744,13.79845412]
[1772646652621,8.18441471,91.809,91.744,13.79845412]
[1772646653124,9.801,91.797,91.744,23.60545412]
[1772646653323,9.801,91.797,91.745,13.79845412]
[1772646654422,9.801,91.797,91.746,9.807]
[1772646655325,9.802,91.79,91.745,13.79845412]
[1772646656325,9.801,91.798,91.746,13.79845412]
[1772646656525,8.18441471,91.809,91.746,13.79845412]
[1772646656725,8.18441471,91.809,91.753,9.806]
[1772646657624,9.8,91.806,91.757,9.806]
[1772646658628,8.70251598,91.827,91.765,13.79845412]
[1772646660024,10.16784719,91.837,91.765,13.79845412]
[1772646660223,10.16784719,91.837,91.794,9.802]
[1772646660426,10.16784719,91.837,91.795,13.79845412]
[1772646661030,7.33735261,91.87,91.797,13.79845412]
[1772646661326,15.17628341,91.878,91.797,13.79845412]
[1772646661530,15.17628341,91.885,91.801,13.79845412]
[1772646661725,15.17628341,91.885,91.824,13.79845412]
[1772646662033,7.33735261,91.9,91.824,13.79845412]
[1772646662532,15.17628341,91.885,91.824,13.79845412]
[1772646662728,9.793,91.877,91.824,13.79845412]
[1772646663137,15.17628341,91.879,91.801,13.79845412]
[1772646663828,9.794,91.869,91.807,13.79845412]
[1772646664827,9.795,91.861,91.812,13.79845412]
[1772646665235,9.792,91.888,91.825,13.79845412]
[1772646665438,24.96828341,91.888,91.825,13.79845412]
[1772646665744,15.17628341,91.888,91.825,13.79845412]
[1772646666235,9.791,91.898,91.838,13.79845412]
[1772646666631,15.17628341,91.909,91.838,13.79845412]
[1772646666837,9.793,91.875,91.804,13.79845412]
[1772646667032,24.96928341,91.875,91.804,13.79845412]
[1772646667336,13.36289379,91.924,91.804,13.79845412]
[1772646667337,15.17628341,91.894,91.804,13.79845412]
[1772646667738,15.17628341,91.879,91.812,13.79845412]
[1772646667937,15.17628341,91.879,91.781,13.79845412]
[1772646668335,15.17628341,91.869,91.79,13.79845412]
[1772646668737,24.97028341,91.867,91.794,9.802]
[1772646669042,15.17628341,91.859,91.795,13.79845412]
[1772646669637,15.17628341,91.839,91.761,13.79845412]
[1772646670848,15.17628341,91.856,91.773,13.79845412]
[1772646671837,15.17628341,91.854,91.792,13.79845412]
[1772646672240,15.17628341,91.871,91.805,13.79845412]
[1772646672444,22.48840378,91.89,91.805,13.79845412]
[1772646672646,15.17628341,91.89,91.805,13.79845412]
[1772646672945,15.17628341,91.89,91.832,13.79845412]
[1772646674439,15.17628341,91.889,91.801,13.79845412]
[1772646674947,15.17628341,91.921,91.833,13.79845412]
[1772646675145,15.17628341,91.909,91.833,13.79845412]
[1772646676439,15.17628341,91.899,91.833,13.79845412]
[1772646676641,15.17628341,91.889,91.833,13.79845412]
[1772646676842,15.17628341,91.928,91.833,13.79845412]
[1772646677032,315.57,91.95,91.833,13.79845412]
[1772646677033,15.17628341,91.909,91.833,13.79845412]
[1772646677437,9.79,91.906,91.844,9.796]
[1772646677642,15.17628341,91.905,91.844,9.796]
[1772646678250,15.17628341,91.898,91.835,9.797]
[1772646678640,15.17628341,91.898,91.833,13.79845412]
[1772646679134,24.46489498,91.891,91.833,13.79845412]
[1772646679333,7.31212037,91.91,91.833,13.79845412]
[1772646679334,14.67389498,91.89,91.833,13.79845412]
[1772646680642,9.792,91.887,91.833,13.79845412]
[1772646680939,14.67389498,91.89,91.833,13.79845412]
[1772646681143,9.793,91.879,91.833,13.79845412]
[1772646681839,14.67389498,91.889,91.818,15.88330049]
[1772646682139,14.67389498,91.869,91.801,15.88330049]
[1772646683447,9.796,91.846,91.801,15.88330049]
[1772646683852,14.67389498,91.869,91.801,15.88330049]
[1772646684043,9.796,91.849,91.801,15.88330049]
[1772646684242,14.67389498,91.869,91.801,15.88330049]
[1772646685549,9.797,91.842,91.801,15.88330049]
[1772646688054,9.797,91.834,91.801,15.88330049]
[1772646688554,9.797,91.842,91.801,15.88330049]
[1772646690152,9.796,91.85,91.801,15.88330049]
[1772646690655,9.795,91.86,91.804,14.89269117]
[1772646690955,16.18018307,91.849,91.761,14.89269117]
[1772646691755,9.797,91.837,91.778,9.803]
[1772646691957,9.797,91.837,91.779,14.89269117]
[1772646693051,9.797,91.837,91.787,9.802]
[1772646693754,9.797,91.837,91.787,24.69469117]
[1772646693953,9.797,91.837,91.795,9.801]
[1772646694255,16.18018307,91.845,91.795,9.801]
[1772646695557,16.18018307,91.845,91.802,9.801]
[1772646695758,16.18018307,91.845,91.787,14.89269117]
[1772646697455,16.18018307,91.834,91.771,14.89269117]
[1772646697656,16.18018307,91.829,91.771,14.89269117]
[1772646698254,16.18018307,91.829,91.755,14.89269117]
[1772646699256,16.18018307,91.829,91.708,19.622]
[1772646699257,16.18018307,91.805,91.735,14.89269117]
[1772646699960,16.18018307,91.816,91.735,14.89269117]
[1772646700653,16.18018307,91.816,91.76,14.89269117]
[1772646701353,16.18018307,91.849,91.76,14.89269117]
[1772646702054,9.798,91.825,91.773,14.89269117]
[1772646702261,16.18018307,91.849,91.773,14.89269117]
[1772646702656,9.796,91.843,91.786,14.89269117]
[1772646702856,16.18018307,91.843,91.786,14.89269117]
[1772646703361,9.797,91.835,91.786,14.89269117]
[1772646703556,16.18018307,91.834,91.768,14.89269117]
[1772646703756,16.18018307,91.834,91.77,14.89269117]
[1772646704554,9.798,91.825,91.773,14.89269117]
[1772646704960,16.18018307,91.834,91.773,14.89269117]
[1772646706157,9.98018307,91.834,91.773,14.89269117]
[1772646706468,7.31212037,91.83,91.751,14.89269117]
[1772646707866,9.801,91.798,91.751,14.89269117]
[1772646708070,16.18018307,91.839,91.754,14.89269117]
[1772646708468,9.799,91.816,91.754,14.89269117]
[1772646708868,16.18018307,91.839,91.754,14.89269117]
[1772646709174,9.797,91.834,91.754,14.89269117]
[1772646709372,16.18018307,91.839,91.774,15.7381858]
[1772646710274,9.797,91.836,91.776,9.804]
[1772646710571,15.95046381,91.835,91.776,9.804]
[1772646710865,15.95046381,91.823,91.774,15.7381858]
[1772646711067,15.95046381,91.823,91.731,15.7381858]
[1772646711262,15.95046381,91.823,91.733,15.7381858]
[1772646711473,15.95046381,91.823,91.761,15.7381858]
[1772646712070,9.799,91.822,91.773,15.7381858]
[1772646712467,15.95046381,91.823,91.757,15.7381858]
[1772646712774,15.95046381,91.812,91.757,15.7381858]
[1772646713072,15.95046381,91.812,91.73,7.31212037]
[1772646713073,15.95046381,91.812,91.741,15.7381858]
[1772646713774,9.802,91.788,91.741,25.5451858]
[1772646714073,9.802,91.788,91.742,15.7381858]
[1772646715570,9.802,91.788,91.745,9.807]
[1772646716068,25.75246381,91.795,91.749,9.806]
[1772646717178,9.802,91.789,91.746,15.7381858]
[1772646717676,15.95046381,91.795,91.732,9.808]
[1772646717875,15.95046381,91.779,91.714,15.7381858]
[1772646718873,9.806,91.758,91.715,9.81]
[1772646719069,15.95046381,91.779,91.714,15.7381858]
[1772646719474,9.805,91.766,91.714,25.5481858]
[1772646719872,9.805,91.759,91.714,25.5481858]
[1772646720077,15.95046381,91.779,91.714,15.7381858]
[1772646720579,15.95046381,91.779,91.663,19.632]
[1772646720580,9.806,91.751,91.694,15.7381858]
[1772646720881,15.95046381,91.75,91.661,15.7381858]
[1772646721080,9.808,91.738,91.681,15.7381858]
[1772646721884,15.95046381,91.75,91.685,15.7381858]
[1772646721885,9.807,91.748,91.685,15.7381858]
[1772646722176,15.95046381,91.747,91.685,15.7381858]
[1772646722375,19.607,91.778,91.672,9.815]
[1772646722376,15.95046381,91.732,91.672,9.815]
[1772646722679,15.95046381,91.719,91.652,15.7381858]
[1772646722870,15.95046381,91.718,91.655,15.7381858]
[1772646723981,15.95046381,91.735,91.66,15.7381858]
[1772646724480,15.95046381,91.709,91.621,15.7381858]
[1772646724776,7.31212037,91.7,91.621,15.7381858]
[1772646725079,9.814,91.683,91.622,15.7381858]
[1772646725276,15.95046381,91.699,91.622,15.7381858]
[1772646726483,9.813,91.685,91.626,15.7381858]
[1772646728272,9.812,91.695,91.631,15.7381858]
[1772646728474,15.95046381,91.695,91.631,15.7381858]
[1772646728676,7.31212037,91.7,91.631,15.7381858]
[1772646728879,9.812,91.699,91.634,9.819]
[1772646729079,9.812,91.699,91.631,15.7381858]
[1772646729080,15.95046381,91.699,91.631,15.7381858]
[1772646729580,15.95046381,91.708,91.631,15.7381858]
[1772646730381,9.811,91.704,91.644,15.7381858]
[1772646730978,15.95046381,91.708,91.646,15.7381858]
[1772646731978,15.95046381,91.708,91.65,9.817]
[1772646732379,152.515,91.771,91.621,15.7381858]
[1772646732380,15.95046381,91.699,91.621,15.7381858]
[1772646733088,15.95046381,91.694,91.635,9.819]
[1772646733486,15.95046381,91.692,91.621,15.7381858]
[1772646734477,15.95046381,91.692,91.542,152.896]
[1772646734478,15.95046381,91.639,91.579,15.7381858]
[1772646735986,15.95046381,91.619,91.551,15.7381858]
[1772646736282,9.82,91.62,91.554,9.827]
[1772646736489,9.82,91.62,91.555,15.7381858]
[1772646738089,9.82,91.62,91.557,15.7381858]
[1772646738291,15.95046381,91.619,91.475,15.7381858]
[1772646738484,7.34367258,91.64,91.481,15.22183832]
[1772646738485,15.9790545,91.589,91.481,15.22183832]
[1772646738685,15.9790545,91.589,91.502,15.22183832]
[1772646739490,16.08994404,91.579,91.502,15.22183832]
[1772646740990,9.828,91.549,91.502,15.22183832]
[1772646741390,16.08994404,91.562,91.502,15.22183832]
[1772646741391,9.829,91.539,91.502,15.22183832]
[1772646741588,9.829,91.539,91.477,15.22183832]
[1772646742092,7.34367258,91.56,91.477,15.22183832]
[1772646742093,16.08994404,91.559,91.477,15.22183832]
[1772646742492,16.08994404,91.539,91.45,7.34367258]
[1772646742693,16.08994404,91.539,91.395,153.142]
[1772646742694,9.832,91.515,91.456,1.90181602]
[1772646742894,9.832,91.515,91.44,7.34367258]
[1772646743189,16.08994404,91.539,91.446,1.90234623]
[1772646743394,9.83,91.527,91.46,7.34367258]
[1772646743795,9.831,91.516,91.446,1.90234623]
[1772646744498,16.08994404,91.539,91.461,15.22183832]
[1772646746200,16.08994404,91.539,91.462,15.94535384]
[1772646746501,15.92775163,91.569,91.471,15.94535384]
[1772646746994,9.828,91.55,91.476,9.836]
[1772646747194,9.828,91.55,91.477,15.94535384]
[1772646747794,9.828,91.547,91.479,15.94535384]
[1772646748001,15.92775163,91.546,91.479,15.94535384]
[1772646748493,9.828,91.545,91.481,15.94535384]
[1772646749091,15.92775163,91.546,91.481,15.94535384]
[1772646749494,25.75575163,91.546,91.483,15.94535384]
[1772646749705,15.92775163,91.546,91.483,15.94535384]
[1772646750300,15.92775163,91.532,91.466,15.94535384]
[1772646750491,15.92775163,91.529,91.466,15.94535384]
[1772646751296,15.92775163,91.52,91.455,9.838]
[1772646751801,9.832,91.515,91.448,15.94535384]
[1772646752501,9.833,91.504,91.45,9.838]
[1772646752802,9.833,91.504,91.451,15.94535384]
[1772646753006,15.92775163,91.533,91.453,15.94535384]
[1772646753807,15.92775163,91.514,91.46,15.94535384]
[1772646755506,9.832,91.51,91.46,15.94535384]
[1772646755809,15.92775163,91.533,91.46,15.94535384]
[1772646756310,9.831,91.522,91.46,15.94535384]
[1772646756710,7.34367258,91.53,91.46,15.94535384]
[1772646756711,15.92775163,91.529,91.46,15.94535384]
[1772646756906,9.832,91.512,91.461,25.78235384]
[1772646757108,9.832,91.512,91.462,15.94535384]
[1772646757804,9.831,91.521,91.464,15.94535384]
[1772646758710,15.92775163,91.529,91.467,9.837]
[1772646759106,15.92775163,91.529,91.467,25.78235384]
[1772646759307,15.92775163,91.529,91.468,15.94535384]
[1772646760115,15.92775163,91.529,91.469,25.78135384]
[1772646760116,9.831,91.52,91.469,25.78135384]
[1772646760510,9.831,91.52,91.47,15.94535384]
[1772646761115,9.832,91.512,91.47,15.94535384]
[1772646761316,9.832,91.512,91.46,9.837]
[1772646761515,9.832,91.512,91.46,25.78235384]
[1772646761918,15.92775163,91.508,91.45,9.838]
[1772646762216,15.92775163,91.508,91.451,15.94535384]
[1772646762614,9.832,91.507,91.455,15.94535384]
[1772646763911,15.92775163,91.508,91.459,15.94535384]
[1772646764518,25.75975163,91.508,91.461,9.837]
[1772646764913,9.832,91.508,91.462,15.94535384]
[1772646765519,9.831,91.516,91.463,9.837]
[1772646765717,9.831,91.516,91.464,15.94535384]
[1772646766421,9.832,91.508,91.458,9.838]
[1772646766719,15.92775163,91.511,91.458,9.838]
[1772646767221,9.832,91.509,91.466,9.837]
[1772646767725,9.831,91.517,91.473,9.836]
[1772646767926,15.92775163,91.528,91.473,9.836]
[1772646768220,9.831,91.517,91.468,15.94535384]
[1772646768423,15.92775163,91.517,91.468,15.94535384]
[1772646768814,9.832,91.51,91.468,15.94535384]
[1772646769021,17.32784857,91.51,91.454,9.838]
[1772646769325,17.32784857,91.51,91.454,16.83454887]
[1772646769620,17.32784857,91.524,91.454,16.83454887]
[1772646770121,7.34367258,91.54,91.484,16.83454887]
[1772646770323,17.32784857,91.559,91.484,16.83454887]
[1772646771224,9.827,91.557,91.511,9.832]
[1772646771422,17.32784857,91.559,91.503,16.83454887]
[1772646772918,17.32784857,91.579,91.503,16.83454887]
[1772646773523,9.827,91.554,91.503,26.66754887]
[1772646773720,9.827,91.554,91.504,16.83454887]
[1772646774625,17.32784857,91.564,91.504,16.83454887]
[1772646775526,9.827,91.553,91.504,16.83454887]
[1772646775721,17.32784857,91.579,91.504,16.83454887]
[1772646775922,17.32784857,91.579,91.515,16.83454887]
[1772646776133,17.32784857,91.575,91.515,16.83454887]
[1772646776423,17.32784857,91.575,91.496,16.83454887]
[1772646777021,17.32784857,91.582,91.511,16.83454887]
[1772646778528,17.32784857,91.582,91.513,16.83454887]
[1772646779032,17.32784857,91.582,91.515,16.83454887]
[1772646780430,17.32784857,91.582,91.44,27.22421662]
[1772646780431,17.32784857,91.559,91.491,16.83454887]
[1772646780828,17.32784857,91.575,91.495,16.83454887]
[1772646781534,7.34367258,91.58,91.498,16.83454887]
[1772646781535,17.32784857,91.573,91.498,16.83454887]
[1772646782227,17.32784857,91.573,91.501,16.83454887]
[1772646782432,187.88915657,91.598,91.501,16.83454887]
[1772646782433,17.32784857,91.559,91.501,16.83454887]
[1772646782635,7.34367258,91.58,91.501,16.83454887]